Cogmind - Beta 13 @@@ ROGUE MODE // 2024.04.03 @ 18:29:32 Player: CocoWaff Result: Destroyed by as-50336 with Assembled Blade Performance ------------- Evolutions (0) 0 Regions Visited (2) 400 Robots Destroyed (1) 5 Value Destroyed (34) 34 Prototype IDs (0) 0 Alien Tech Used (0) 0 Bonus (0) 0 TOTAL SCORE: 439 Bonus ------- None Cogmind --------- Core Integrity 0/250 Matter 258/400 Energy 250/250 System Corruption 4% Temperature Cool (0) Movement Rolling (80) Location -10/Mines Parts ------- > --- POWER (1) -------- Ion Engine > --- PROPULSION (2) --- Wheel Wheel > --- UTILITY (2) ------ Medium Matter Pod Power Shielding > --- WEAPON (2) ------- Medium Laser > --- INVENTORY (5) ---- Heat Sink Peak State ------------ > --- POWER ------------ Light Ion Engine > --- PROPULSION ------- Armored Wheel Armored Wheel > --- UTILITY ---------- Heat Sink Medium Matter Pod > --- WEAPON ----------- EM Pulse Gun Assault Rifle > --- INVENTORY -------- Wheel Wheel Medium Laser [Rating: 9] Favorites ----------- Power Light Ion Engine Engine Light Ion Engine Propulsion Wheel Wheel Wheel Utility Medium Matter Pod Device Heat Sink Storage Medium Matter Pod Protection Power Shielding Weapon Assault Rifle Energy Gun EM Pulse Gun Ballistic Gun Assault Rifle Build | -11 -10 -10 ------- Run | Yrd Mat Min Slots Evolved . | . . . Power . | . . . Propulsion . | . . . Utility . | . . . Weapon . | . . . Parts Attached 14 | 6 2 6 Power 2 | 1 . 1 Engine 2 | 1 . 1 Core . | . . . Reactor . | . . . Propulsion 6 | 2 2 2 Treads . | . . . Leg . | . . . Wheel 6 | 2 2 2 Hover . | . . . Flight . | . . . Utility 3 | 1 . 2 Device 1 | 1 . . Storage 1 | . . 1 Processor . | . . . Hackware . | . . . Protection 1 | . . 1 Artifact . | . . . Weapon 3 | 2 . 1 Energy Gun 2 | 1 . 1 Energy Cannon . | . . . Ballistic Gun 1 | 1 . . Ballistic Cannon . | . . . Launcher . | . . . Special Weapon . | . . . Impact Weapon . | . . . Slashing Weapon . | . . . Piercing Weapon . | . . . Special Melee Weapon . | . . . Unidentified Prototypes . | . . . Corrupted Parts 1 | 1 . . System Corruption 2 | 2 . . Parts Lost 5 | . . 5 Power 1 | . . 1 Propulsion 2 | . . 2 Utility . | . . . Weapon 2 | . . 2 Highest Loss Streak 5 | . . 5 To Critical Strikes . | . . . Average Slot Usage (%) 76 | . 85 74 Engine 13 | . 14 13 Wheel 24 | . 28 23 Device 7 | . 14 5 Storage 11 | . . 14 Protection 6 | . . 8 Energy Gun 6 | . 14 5 Ballistic Gun 5 | . 14 3 Naked Turns . | . . . Heaviest Build 10 | 8 8 10 Greatest Support 24 | 20 24 24 Greatest Overweight (x) 1 | . . 1 Average Overweight (x) . | . . . Largest Inventory Capacity 5 | 5 5 5 Average Capacity 5 | 5 5 5 Most Carried 5 | 3 4 5 Average Carried 1 | 1 2 2 Final Capacity 5 | 5 5 5 Final Carried 4 | 1 4 1 Class Distribution -------------------- 100% | Mutant Dominant Class ---------------- Mutant | -10/Materials Mutant | -10/Mines Resources | -11 -10 -10 ----------- Run | Yrd Mat Min Matter Collected 315 | 269 . 46 Remotely . | . . . Salvage Created 81 | 48 . 33 Parts 1 | 1 . . Haulers Intercepted . | . . . Recyclers Shooed . | . . . Parts Field Recycled . | . . . Retrieved Matter . | . . . Parts Self-Destructed . | . . . Prevented . | . . . Kills | -11 -10 -10 ------- Run | Yrd Mat Min Combat Hostiles Destroyed 3 | 1 . 2 Guns 2 | . . 2 AOE 1 | 1 . . Classes Destroyed 2 | 1 . 1 Grunt 1 | 1 . . Assembled 2 | . . 2 Best Kill Streak 2 | 1 . 2 Combat Bots Only 2 | 1 . 2 Max Kills in Single Turn 1 | 1 . 1 Gunslinging . | . . . Exploded 1 | 1 . . Melee . | . . . Uniques/NPCs Destroyed . | . . . Combat | -11 -10 -10 -------- Run | Yrd Mat Min Hostile Shots Fired 62 | 3 . 59 Missed 11 | . . 11 Damage Taken 800 | 34 . 766 Core 282 | . . 282 Absorbed by Shields . | . . . Redirected to Shielding 3 | . . 3 Core Remaining (%) 100 | 100 . . Volleys Fired 23 | 3 2 18 Largest 2 | 2 2 2 Hottest 60 | 60 60 60 Shots Fired 31 | 6 4 21 Gun 31 | 6 4 21 Cannon . | . . . Launcher . | . . . Special . | . . . Kinetic 14 | 3 2 9 Thermal 9 | . . 9 Explosive . | . . . Electromagnetic 8 | 3 2 3 Robot Hit Streak 7 | 2 2 7 Robot Miss Streak 4 | 3 2 4 Penetration Max . | . . . Secondary Targets . | . . . Shots Hit Robots 16 | 3 2 11 Core Hits 9 | 2 . 7 Critical Kills . | . . . Critical Parts Destroyed . | . . . Critical Strikes . | . . . Melee Attacks . | . . . Impact . | . . . Slashing . | . . . Piercing . | . . . Sneak Attacks . | . . . Combat Hostiles . | . . . Follow-up Attacks . | . . . Damage Inflicted 288 | 87 25 176 Guns 226 | 25 25 176 Cannons . | . . . Explosions 62 | 62 . . Melee . | . . . Ramming . | . . . Kinetic 113 | . 10 103 Thermal 113 | 62 . 51 Explosive . | . . . Electromagnetic 62 | 25 15 22 Impact . | . . . Slashing . | . . . Piercing . | . . . Highest Corruption 4 | 2 2 4 Average Corruption 3 | 2 2 3 Corruption Purged . | . . . Corruption Blocked . | . . . Effects 5 | . 1 4 Message Errors 5 | . 1 4 Overload Shots . | . . . Overflow Damage . | . . . Projectiles . | . . . Explosions . | . . . Melee . | . . . Knockbacks . | . . . Impact . | . . . Kinetic . | . . . Secondary . | . . . Self-Inflicted Damage . | . . . Shots . | . . . Rammed . | . . . Targets Rammed . | . . . Kicked . | . . . Crushed . | . . . Highest Temperature 130 | 18 . 130 Average Temperature 48 | 13 . 53 Received Heat Transfer 478 | 18 . 460 Siege Activations . | . . . Robots Corrupted . | . . . Combat Hostiles . | . . . Parts Fried . | . . . Impact Corruptions . | . . . Robots Melted . | . . . Combat Hostiles . | . . . Parts Melted . | . . . Heat Transferred 248 | 100 . 148 Parts Sabotaged . | . . . Parts Stolen . | . . . Parts Stripped . | . . . Power Chain Reactions 1 | 1 . . Alert | -11 -10 -10 ------- Run | Yrd Mat Min Peak Influence 20 | 20 13 15 Initial 13 | . 13 4 Average 3 | 2 13 2 Maximum Alert Level . | . . . Low Security (%) 100 | 100 100 100 Level 1 . | . . . Level 2 . | . . . Level 3 . | . . . Level 4 . | . . . Level 5 . | . . . High Security . | . . . Max Security . | . . . Squads Dispatched 1 | . 1 . Investigation . | . . . Extermination . | . . . Reinforcement 1 | . 1 . Assault . | . . . Garrison . | . . . Intercept . | . . . Searches Triggered . | . . . Construction Impeded . | . . . Haulers Reinforced . | . . . Active Scanning Responses . | . . . Cargo Convoy Interrupts . | . . . Stealth | -11 -10 -10 --------- Run | Yrd Mat Min Distress Signals . | . . . Communications Jammed . | . . . Distress Signals . | . . . Times Spotted 23 | 1 1 21 Peak Tracking Total 20 | 1 1 20 Tactical Retreats 3 | . . 3 Traps | -11 -10 -10 ------- Run | Yrd Mat Min Traps Triggered . | . . . Indirectly . | . . . Trap Hack Attempts . | . . . Triggered . | . . . Disarmed . | . . . Reprogrammed . | . . . Reused . | . . . Traps Extracted . | . . . Installed . | . . . Triggered . | . . . Machines | -11 -10 -10 ---------- Run | Yrd Mat Min Machines Disabled . | . . . Max in Single Turn . | . . . Machines Repaired . | . . . Machines Dismantled . | . . . Machines Sabotaged . | . . . Overloaded Fab Kills . | . . . Hacking | -11 -10 -10 --------- Run | Yrd Mat Min Machines Accessed . | . . . Terminals . | . . . Fabricators . | . . . Repair Stations . | . . . Recycling Units . | . . . Scanalyzers . | . . . Garrison Access . | . . . Total Hacks . | . . . Successful . | . . . Failed . | . . . Catastrophic . | . . . Database Lockouts . | . . . Manual . | . . . Terminals . | . . . Fabricators . | . . . Repair Stations . | . . . Recycling Units . | . . . Scanalyzers . | . . . Garrison Access . | . . . Terminal Hacks . | . . . Fabricator Hacks . | . . . Repair Station Hacks . | . . . Recycling Unit Hacks . | . . . Scanalyzer . | . . . Garrison Access Hacks . | . . . Unauthorized Hacks . | . . . Terminals . | . . . Fabricators . | . . . Repair Stations . | . . . Recycling Units . | . . . Scanalyzers . | . . . Garrison Access . | . . . Data Cores Recovered . | . . . Used . | . . . Hacking Detections . | . . . Full Trace Events . | . . . Feedback Events . | . . . Feedback Blocked . | . . . Robot Schematics Acquired . | . . . Robots Built . | . . . Authchips . | . . . Time . | . . . Total Robot Build Rating . | . . . Part Schematics Acquired . | . . . Parts Built . | . . . Authchips . | . . . Time . | . . . Total Part Build Rating . | . . . Parts Repaired . | . . . Time . | . . . Parts Recycled . | . . . Recycled Matter . | . . . Retrieved Matter . | . . . Retrieved Components . | . . . Parts Scanalyzed . | . . . Part Schematics Acquired . | . . . Parts Damaged . | . . . Bothacking | -11 -10 -10 ------------ Run | Yrd Mat Min Used RIF Installer . | . . . Robots Hacked . | . . . Non-combat . | . . . Combat . | . . . Robot Hacks Applied . | . . . Relay Couplers Released . | . . . Fabnet Peak Effective % . | . . . Robots Rewired . | . . . Allies Hacked . | . . . Hacks Repelled . | . . . Allies | -11 -10 -10 -------- Run | Yrd Mat Min Total Allies . | . . . Largest Group . | . . . Highest-Rated Group . | . . . Highest-Rated Ally . | . . . Total Orders . | . . . Ally Attacks . | . . . Total Damage . | . . . Kills . | . . . Allies Corrupted . | . . . Allies Melted . | . . . Intel | -11 -10 -10 ------- Run | Yrd Mat Min Robot Analysis Total . | . . . Derelict Logs Recovered 1 | . . 1 Drone Launches . | . . . Drone Recoveries . | . . . Exploration | -11 -10 -10 ------------- Run | Yrd Mat Min Turns Passed 305 | 69 48 188 Spaces Moved 281 | 66 42 173 Core 50 | 20 . 30 Treads . | . . . Legs . | . . . Wheels 231 | 46 42 143 Hover . | . . . Flight . | . . . Fastest Speed 50 | 50 80 50 Average Speed 79 | 70 87 80 Slowest Speed 100 | 80 90 100 Overloaded Moves . | . . . Propulsion Burnouts . | . . . Robots Hopped . | . . . Cave-ins Triggered . | . . . Exploration Rate (%) 19 | 6 14 38 Regions Visited 2 Branch Regions 1 Pre-discovered Areas . | . . . Known Exits Taken . | . . . Unknown Exits Taken 2 | 1 1 . Scrap Searched 1 | . . 1 Spaces Dug . | . . . Terrain Destroyed . | . . . Melee . | . . . Projectile . | . . . AOE . | . . . Terrain Rammed . | . . . Walls Destroyed . | . . . Machines Disabled . | . . . Actions | -11 -10 -10 --------- Run | Yrd Mat Min Total 328 | 81 48 199 Wait . | . . . Move 279 | 65 41 173 Hop . | . . . Pick Up 12 | 7 3 2 Fast Attach . | . . . Attach 11 | 6 . 5 Detach . | . . . Swap 3 | . 2 1 Drop . | . . . Fire 23 | 3 2 18 Melee . | . . . Ram . | . . . Kick . | . . . Crush . | . . . Escape Stasis . | . . . Rewire . | . . . Trap . | . . . Miscellaneous . | . . . Route ------- -11/Scrapyard -10/Materials -10/Mines History --------- Turn | Location | Event 2 | -11/Scrapyard | Met Revision 17 51 | -11/Scrapyard | Discovered new exit (range 8) 70 | -11/Scrapyard | Entered Materials 107 | -10/Materials | Discovered new exit (range 5) 118 | -10/Materials | Entered Mines 119 | -10/Mines | Assembled infested the area 119 | -10/Mines | Met a Derelict bent on vengeance 164 | -10/Mines | Core integrity fell below 50% 210 | -10/Mines | Lost 5 parts (1p2n2w) 278 | -10/Mines | Core integrity fell below 20% 306 | -10/Mines | Destroyed by as-50336 with Assembled Blade Last Messages --------------- Assault Rifle destroyed. Arm. Wheel destroyed. MRUPSXR0CFRIZPEH5 AK6LP&3Z7&V| Lgt. Ion Engine destroyed. Searching scrap... Found Ion Engine. Found Hcp. Matter Pod. Found Sml. Matter Pod. Found Power Shielding. Found 31 Matter. Acquired Ion Engine. Acquired Power Shielding. [Achievement: Slippery One] 2L76UU6&C|>RS O7QITQSQF1IOGB&B87C&P3T6GQE7IXA|4 T-07 Excavator is excavating. Map ----- +----------------------------------------------------+ | ????????# #????????????????????????# ??????? | | ????????# ##???????????????????????# #??????? | | ##??????# ##?????????????????????? #??????? | | #??????## #######????????????????# #??????? | | #??????# #????????????????# #??????? | | #??????# #????????????????# ######?? | | #?###### ########## #?????????????#### ## #?? | | ###!! #????????# #?????????????#%% ## #?? | | ## #######????????# #?????????##### ## # #??? | | #??????????????# #?????????# ## ! ##??? | | ####??????????????# #?????????# ##### !%##???? | | ###?????????????????# #????????## ##??# = ##????? | | ????????????????????# #???????## ##?##%!##?????? | | ????????????????????# #??????## ##?##=#??????? | | ????????????????????# ######## #??# #??????? | | ???????????????????## #??# #??????? | | ???????????????# #?< #??????? | | ??????????????# ###### ### #?????? | | ??????????????# ##????# #??# #????? | | ????????????## ##?????# #??? ?????? | | ????????????# ##??????# #???# ????? | | ???????????# ????????# #????#### ????? | | ?????????? ????????# #???????# ?????? | | ?????????? ######## ##?????? ?????? | | ?????????? ## aa ####???? #??????? | | ???????????#??# @a #?????????????? | | ??????????????# ###### #???????? | | ??????????????# ## ???????# ## #??????? | | ?????????????# #??????????# #???? #??????? | | ?????????????????????????????## #???????????? | | ???????????????????????????????# #???????????? | | ????????????????????????????????## ##???????????? | | ??????????????????????????????????###????????????? | | ?????????????????????????????????????????????????? | | ?????????????????????????????????????????????????? | | ?????????????????????????????????????????????????? | | | | | | | | | | | | | | | | | | | | | | | | | | | | | +----------------------------------------------------+ Best States ------------- Heat Dissipation 25 Energy Generation 10 Energy Capacity 250 Matter Stores 300 Matter Capacity 400 Sight Range 16 Terrain Scan Density 10 Power Shielding 33 Evasion (%) 50 Item Schematics ----------------- None Robot Schematics ------------------ None Fabricated ------------ Nothing Alien Tech Used ----------------- None Achievements -------------- Hunted Slippery One Challenges ------------ None Game ------ Seed GaussGravityStripper Manual? 0 Play Time 00:11:06 Cumulative 0.6 hours Start 2024.04.03 @ 18:20:10 End 2024.04.03 @ 18:29:32 Sessions 1 Manual Loads 0 Difficulty Rogue Special Mode None Game No. 2 Rogue 2 Adventurer 0 Explorer 0 Win Type - Total 0 Types 0/0/0/0/0/0/0/0/0 Lore% 0 Gallery% 1 Achievement% 1 Wizard Run 0 Options --------- Layout 1 ASCII 1 Keyboard 0 Movement Mouse Keybinds 0 Fullscreen 2 Font 24/Smallcaps Map View 50x35 Zoom Use 0% Tactical HUD 0 Map Filters NONE Filters NONE Steam 1 RUN: a2a1c601-1f0c-4963-bf9e-91109f5dcd72